bitfinex/quotes_SOLUSD_20260228
["timestamp","ask_amount","ask_price","bid_price","bid_amount"]
[1772316289015,4.46426102,84.902,84.871,4.45158949]
[1772316289237,4.46426102,84.9,84.87,8.01245112]
[1772316289439,4.46426102,84.9,84.861,4.45158949]
[1772316289829,4.46426102,84.899,84.861,4.45158949]
[1772316290930,11.77884049,84.898,84.861,16.23556563]
[1772316291129,4.46426102,84.897,84.861,16.23556563]
[1772316293242,4.46426102,84.895,84.861,16.23556563]
[1772316294717,11.77939548,84.894,84.862,4.45158949]
[1772316294923,16.2436565,84.894,84.87,8.01245112]
[1772316295123,4.46426102,84.893,84.87,8.01245112]
[1772316295324,16.24262667,84.902,84.871,4.45158949]
[1772316295528,4.46426102,84.911,84.871,4.45158949]
[1772316295736,4.46426102,84.906,84.871,4.45158949]
[1772316296039,4.46426102,84.906,84.84,8.01245112]
[1772316296040,4.46426102,84.887,84.851,4.45158949]
[1772316296928,4.46426102,84.885,84.853,4.45158949]
[1772316297322,4.46426102,84.879,84.84,8.01245112]
[1772316297937,4.46426102,84.879,84.841,4.45158949]
[1772316299035,4.46426102,84.879,84.843,4.45158949]
[1772316299235,4.46426102,84.869,84.832,4.45158949]
[1772316299829,4.46426102,84.869,84.84,8.01245112]
[1772316300237,4.46426102,84.869,84.832,4.45158949]
[1772316300744,4.46426102,84.859,84.826,11.78883832]
[1772316301127,4.46426102,84.839,84.82,1e-08]
[1772316301345,4.46426102,84.829,84.789,3.69383402]
[1772316301528,4.46426102,84.819,84.789,4.45158949]
[1772316302248,4.46426102,84.819,84.786,11.79432841]
[1772316303134,4.46426102,84.817,84.782,4.45158949]
[1772316304433,4.46426102,84.83,84.801,4.45158949]
[1772316304640,4.46426102,84.839,84.801,4.45158949]
[1772316304845,11.78739413,84.837,84.801,4.45158949]
[1772316305046,4.46426102,84.836,84.801,4.45158949]
[1772316305255,11.78758767,84.835,84.803,4.45158949]
[1772316305845,11.78758767,84.835,84.802,11.79217471]
[1772316305846,7.39311387,84.848,84.821,4.45158949]
[1772316306537,4.46426102,84.864,84.84,8.01245112]
[1772316306857,4.46426102,84.862,84.83,8.01245112]
[1772316307150,4.46426102,84.862,84.84,11.78678909]
[1772316307657,4.46426102,84.86,84.83,8.01245112]
[1772316307857,4.46426102,84.859,84.83,8.01245112]
[1772316308867,4.46426102,84.869,84.831,4.22412153]
[1772316309442,4.46426102,84.869,84.832,11.78800452]
[1772316309757,4.46426102,84.869,84.833,4.22412153]
[1772316310860,7.3891988,84.895,84.841,4.22412153]
[1772316310861,4.46426102,84.878,84.841,4.22412153]
[1772316312043,4.46426102,84.876,84.841,16.01087557]
[1772316314265,4.46426102,84.874,84.841,16.01087557]
[1772316314667,4.46426102,84.869,84.836,11.78737534]
[1772316315363,4.46426102,84.859,84.821,11.78953325]
[1772316315563,4.46426102,84.859,84.821,41.26336638]
[1772316315962,4.46426102,84.859,84.822,4.22412153]
[1772316316375,4.29778218,84.857,84.823,11.78925527]
[1772316316756,4.29778218,84.857,84.83,8.01245112]
[1772316317673,7.3891988,84.895,84.811,11.79082166]
[1772316317674,4.29778218,84.849,84.811,11.79082166]
[1772316317869,4.29778218,84.839,84.811,11.79082166]
[1772316318376,4.29778218,84.837,84.805,11.79175756]
[1772316318667,4.29778218,84.837,84.806,4.22412153]
[1772316318873,4.29778218,84.837,84.805,41.27115146]
[1772316318874,4.29778218,84.855,84.821,4.22412153]
[1772316320275,8.01245112,84.86,84.822,11.78939426]
[1772316320276,4.29778218,84.853,84.822,11.78939426]
[1772316322167,4.29778218,84.853,84.823,4.22412153]
[1772316322475,4.29778218,84.853,84.824,11.78911628]
[1772316323357,4.29778218,84.853,84.82,8.01245112]
[1772316323562,4.29778218,84.849,84.819,11.78967522]
[1772316323972,4.29778218,84.849,84.813,11.79055468]
[1772316324180,4.29778218,84.839,84.813,11.79055468]
[1772316324580,4.29778218,84.839,84.801,11.79231376]
[1772316325564,4.29778218,84.829,84.801,11.79231376]
[1772316326483,4.29778218,84.837,84.802,4.22412153]
[1772316326981,4.29778218,84.835,84.803,11.79203565]
[1772316327695,4.29778218,84.835,84.801,4.22412153]
[1772316327893,4.29778218,84.829,84.798,11.79264498]
[1772316328884,4.29778218,84.829,84.794,11.79328726]
[1772316331889,4.29778218,84.829,84.77,1.17966261]
[1772316331890,4.29778218,84.809,84.773,4.22412153]
[1772316332079,4.29778218,84.809,84.774,11.79606954]
[1772316333090,4.29778218,84.807,84.769,29.49187155]
[1772316333393,4.29778218,84.807,84.77,8.01245112]
[1772316334901,4.29778218,84.815,84.781,4.22412153]
[1772316335074,11.79050628,84.814,84.783,4.22412153]
[1772316335393,4.29778218,84.813,84.783,4.22412153]
[1772316336184,4.29778218,84.813,84.782,11.79495647]
[1772316337401,4.29778218,84.813,84.78,8.01847625]
[1772316338398,4.29778218,84.811,84.774,11.79606954]
[1772316338574,4.29778218,84.799,84.774,11.79606954]
[1772316339188,4.29778218,84.799,84.765,11.797322]
[1772316339393,4.29778218,84.809,84.771,4.22412153]
[1772316340280,29.47294729,84.824,84.791,4.22412153]
[1772316340480,29.47294729,84.824,84.765,41.29062701]
[1772316340481,8.01847625,84.86,84.811,4.46870724]
[1772316341101,8.01847625,84.85,84.811,4.46870724]
[1772316341297,8.01847625,84.84,84.811,4.46870724]
[1772316341506,11.78564273,84.849,84.812,11.79078432]
[1772316341796,11.78564273,84.849,84.812,16.25949156]
[1772316342380,4.29778218,84.848,84.812,16.25949156]
[1772316342795,4.29778218,84.848,84.813,4.46870724]
[1772316342998,7.40814576,84.871,84.812,11.79078432]
[1772316342999,4.29778218,84.856,84.821,4.46870724]
[1772316343398,4.29778218,84.864,84.831,4.46870724]
[1772316343598,11.70592794,84.871,84.841,4.46870724]
[1772316343906,4.29778218,84.869,84.841,4.46870724]
[1772316345405,4.29778218,84.869,84.84,19.80532897]
[1772316345697,4.30791364,84.868,84.841,4.44236142]
[1772316346502,4.30791364,84.868,84.841,16.22911546]
[1772316346881,4.36724908,84.859,84.811,4.10372647]
[1772316347082,11.78291087,84.869,84.791,11.79370452]
[1772316347083,4.36724908,84.829,84.791,11.79370452]
[1772316347505,4.36724908,84.827,84.791,11.79370452]
[1772316347700,4.36724908,84.819,84.786,15.89802592]
[1772316348301,4.36724908,84.819,84.786,4.10372647]
[1772316348490,4.36724908,84.819,84.787,11.79426091]
[1772316348885,16.15580946,84.828,84.791,4.10372647]
[1772316349081,4.36724908,84.827,84.791,4.10372647]
[1772316349504,4.36724908,84.825,84.792,11.79356543]
[1772316350698,4.36724908,84.823,84.793,4.10372647]
[1772316351394,24.17414662,84.83,84.793,4.10372647]
[1772316351596,4.36724908,84.829,84.793,4.10372647]
[1772316353009,4.36724908,84.827,84.794,15.89701373]
[1772316353204,4.36724908,84.819,84.788,11.79404626]
[1772316354918,4.36724908,84.819,84.789,4.10372647]
[1772316355410,4.36724908,84.819,84.791,4.10372647]
[1772316356795,4.36724908,84.827,84.793,4.10372647]
[1772316357894,4.36724908,84.842,84.811,4.10372647]
[1772316358401,4.36724908,84.839,84.811,4.10372647]
[1772316358808,4.36724908,84.839,84.812,11.79078432]
[1772316359002,4.36724908,84.839,84.813,4.10372647]
[1772316359614,4.36724908,84.849,84.813,4.10372647]
[1772316360313,4.36724908,84.839,84.813,4.10372647]
[1772316360496,4.36724908,84.839,84.807,11.79135682]
[1772316361114,4.36724908,84.837,84.807,4.10372647]
[1772316361500,4.36724908,84.837,84.801,11.79231376]
[1772316361697,4.36724908,84.837,84.802,4.10372647]
[1772316361903,4.36724908,84.829,84.794,11.79327966]
[1772316362103,4.36724908,84.829,84.794,15.89700613]
[1772316362308,4.36724908,84.829,84.795,4.10372647]
[1772316363008,4.36724908,84.829,84.796,11.7930091]
[1772316363316,4.36724908,84.829,84.797,4.10372647]
[1772316363915,4.36724908,84.827,84.797,4.10372647]
[1772316364116,4.36724908,84.827,84.796,11.7930091]
[1772316364117,4.36724908,84.841,84.811,4.10372647]
[1772316365520,4.36724908,84.841,84.813,4.10372647]
[1772316366440,4.36724908,84.829,84.79,4.10372647]
[1772316366601,11.78679582,84.841,84.79,4.10372647]
[1772316366602,4.36724908,84.819,84.79,4.10372647]
[1772316367104,4.36724908,84.847,84.801,4.10372647]
[1772316367307,4.36724908,84.845,84.811,4.10372647]
[1772316367820,4.36724908,84.845,84.81,8.01847625]
[1772316367821,4.36724908,84.843,84.812,15.89451079]
[1772316368019,4.36724908,84.819,84.791,4.10372647]
[1772316368918,41.25218046,84.844,84.772,15.90005232]
[1772316368919,4.36724908,84.809,84.772,15.90005232]
[1772316369118,4.36724908,84.809,84.773,4.10372647]
[1772316369822,8.01847625,84.81,84.775,4.10372647]
[1772316370028,4.36724908,84.829,84.791,4.10372647]
[1772316370207,19.80687846,84.83,84.774,41.28624341]
[1772316370208,4.36724908,84.809,84.775,4.10372647]
[1772316372206,4.36724908,84.809,84.756,58.99281031]
[1772316372207,4.36724908,84.789,84.729,4.10372647]
[1772316372405,8.01847625,84.74,84.71,0.2]
[1772316372624,8.01847625,84.72,84.686,4.10372647]
[1772316372841,8.01847625,84.71,84.67,8.01847625]
[1772316373040,8.01847625,84.71,84.664,3.69383402]
[1772316373041,4.36724908,84.739,84.7,8.01847625]
[1772316373341,17.1599624,84.752,84.7,8.01847625]
[1772316373526,17.1599624,84.752,84.72,8.01847625]
[1772316373922,8.01847625,84.75,84.71,8.01847625]
[1772316374133,4.36724908,84.747,84.71,19.82343944]
[1772316374332,12.38572533,84.74,84.71,11.80496319]
[1772316374533,4.36724908,84.729,84.69,8.01847625]
[1772316374732,4.36724908,84.729,84.691,4.10372647]
[1772316376147,4.36724908,84.729,84.693,4.10372647]
[1772316376342,23.71629302,84.728,84.693,4.10372647]
[1772316376843,18.97303442,84.747,84.72,8.01847625]
[1772316377045,4.05093865,84.759,84.73,8.01847625]
[1772316378132,15.17842754,84.768,84.75,8.01847625]
[1772316378334,15.17842754,84.768,84.74,8.01847625]
[1772316378644,15.17842754,84.768,84.732,4.25264989]
[1772316379148,15.17842754,84.768,84.74,8.01847625]
[1772316380448,15.17842754,84.768,84.741,11.80066319]
[1772316380654,16.35836854,84.768,84.741,11.80066319]
[1772316381854,20.40930719,84.768,84.741,11.80066319]
[1772316382154,4.05093865,84.767,84.734,11.80154197]
[1772316382346,4.05093865,84.765,84.734,11.80154197]
[1772316382546,1.179941,84.764,84.734,11.80154197]
[1772316382744,4.05093865,84.759,84.716,11.8041225]
[1772316382943,11.797322,84.765,84.703,4.25264989]
[1772316382944,4.05093865,84.739,84.703,4.25264989]
[1772316383145,4.05093865,84.749,84.711,4.25264989]
[1772316383964,4.05093865,84.747,84.711,4.25264989]
[1772316384142,4.05093865,84.745,84.712,11.80470299]
[1772316384334,15.84978784,84.755,84.72,8.01847625]
[1772316384531,1.179941,84.754,84.72,8.01847625]
[1772316384931,4.05093865,84.758,84.721,4.25264989]
[1772316385135,1.179941,84.757,84.721,4.25264989]
[1772316385350,5.23087965,84.757,84.721,4.25264989]
[1772316385653,4.05093865,84.756,84.721,4.25264989]
[1772316385854,4.05093865,84.754,84.721,4.25264989]
[1772316386044,4.05093865,84.752,84.72,8.01847625]
[1772316386250,4.05093865,84.75,84.72,8.01847625]
[1772316386449,5.23087965,84.749,84.721,11.80344896]
[1772316386639,4.05093865,84.748,84.721,11.80344896]
[1772316386834,1.179941,84.747,84.721,11.80344896]
[1772316387039,4.05093865,84.747,84.721,11.80344896]
[1772316387253,1.179941,84.746,84.721,11.80344896]
[1772316388458,4.05093865,84.745,84.721,11.80344896]
[1772316389842,4.05093865,84.745,84.712,33.76440737]
[1772316391157,4.05093865,84.745,84.603,19.39695725]
[1772316391158,4.05093865,84.719,84.681,11.80902445]
[1772316391363,4.05093865,84.719,84.69,12.27112614]
[1772316391561,4.05093865,84.738,84.701,4.25264989]
[1772316391745,4.05093865,84.738,84.71,8.01847625]
[1772316392056,4.05093865,84.738,84.711,11.80484234]
[1772316392757,1.179941,84.745,84.7,29.51566428]
[1772316392758,4.05093865,84.739,84.7,12.27112614]
[1772316392961,4.05093865,84.738,84.69,4.25264989]
[1772316393160,4.05093865,84.719,84.69,8.01847625]
[1772316393548,4.05093865,84.719,84.683,4.25264989]
[1772316393856,4.05093865,84.719,84.682,41.33109751]
[1772316395161,8.01847625,84.71,84.682,41.33109751]
[1772316395460,4.05093865,84.717,84.682,41.33109751]
[1772316395871,4.05093865,84.709,84.682,11.808885]
[1772316398041,4.05093865,84.719,84.683,4.25264989]
[1772316400367,4.05093865,84.709,84.684,11.80860611]
[1772316400572,1.179941,84.718,84.684,11.80860611]
[1772316400573,4.05093865,84.699,84.684,11.80860611]
[1772316401044,4.05093865,84.699,84.681,11.80902445]
[1772316401249,4.05093865,84.699,84.68,0.2]
[1772316402969,4.05093865,84.699,84.68,12.00905342]
[1772316404062,4.05093865,84.699,84.68,0.2]
[1772316404266,4.05093865,84.689,84.642,11.81446563]
[1772316404451,4.05093865,84.689,84.631,4.25264989]
[1772316404452,4.05093865,84.669,84.641,11.81456724]
[1772316404650,8.03754872,84.68,84.642,4.25264989]
[1772316404862,8.03754872,84.68,84.644,4.48902891]
[1772316405749,1.179941,84.697,84.661,4.48902891]
[1772316405949,8.03754872,84.72,84.68,12.52657763]
[1772316406253,12.14274214,84.719,84.681,4.48902891]
[1772316406871,4.45032257,84.718,84.683,4.30003635]
[1772316408463,4.45032257,84.718,84.661,59.0587924]
[1772316408464,4.45032257,84.689,84.649,11.81348864]
[1772316408660,4.45032257,84.679,84.649,11.81348864]
[1772316409059,4.45032257,84.679,84.649,41.34721024]
[1772316409261,4.45032257,84.679,84.649,11.81348864]
[1772316409857,4.45032257,84.679,84.65,4.30003635]
[1772316411183,4.45032257,84.679,84.651,16.11324588]
[1772316413359,4.45032257,84.679,84.651,11.81320953]
[1772316413890,4.45032257,84.679,84.651,16.11324588]
[1772316415069,4.45032257,84.679,84.652,4.30003635]
[1772316415481,4.45032257,84.679,84.653,11.81293043]
[1772316416968,4.45032257,84.679,84.654,4.30003635]
[1772316417163,8.03754872,84.68,84.654,4.30003635]
[1772316418286,12.14274214,84.686,84.656,4.30003635]
[1772316418481,16.59306471,84.686,84.656,4.30003635]
[1772316418884,8.03754872,84.68,84.656,4.30003635]
[1772316419690,4.45032257,84.685,84.656,4.30003635]
[1772316420290,4.45032257,84.685,84.657,11.81237227]
[1772316420684,4.45032257,84.669,84.636,4.30003635]
[1772316420881,4.45032257,84.684,84.641,4.30003635]
[1772316421273,4.45032257,84.684,84.651,4.30003635]
[1772316421579,12.14274214,84.686,84.651,4.30003635]
[1772316421777,16.59306471,84.686,84.651,4.30003635]
[1772316421978,4.45032257,84.685,84.651,4.30003635]
[1772316422372,4.45032257,84.685,84.653,4.30003635]
[1772316422590,4.45032257,84.685,84.652,41.34574493]
[1772316422591,1e-08,84.686,84.662,4.30003635]
[1772316422770,4.45032257,84.699,84.663,4.30003635]
[1772316423094,9.71419371,84.715,84.681,4.30003635]
[1772316424172,9.71419371,84.715,84.683,4.30003635]
[1772316427382,9.71419371,84.715,84.685,4.30003635]
[1772316428494,4.45032257,84.714,84.685,4.30003635]
[1772316430196,4.45032257,84.714,84.686,11.80832723]
[1772316430377,4.45032257,84.709,84.686,11.80832723]
[1772316430902,4.45032257,84.709,84.686,16.10836358]
[1772316431979,4.45032257,84.709,84.687,4.30003635]
[1772316432594,4.45032257,84.709,84.688,11.80804836]
[1772316432880,9.71419371,84.714,84.689,4.30003635]
[1772316433080,14.16451628,84.714,84.689,4.30003635]
[1772316433901,29.50218061,84.74,84.701,4.30003635]
[1772316433902,4.45032257,84.73,84.701,4.30003635]
[1772316434711,4.45032257,84.73,84.703,4.30003635]
[1772316435005,4.45032257,84.73,84.702,11.80609666]
[1772316435006,4.45032257,84.737,84.711,4.30003635]
[1772316435185,4.45032257,84.763,84.731,4.30003635]
[1772316435490,17.16224124,84.825,84.741,4.30003635]
[1772316435491,4.45032257,84.771,84.741,4.30003635]
[1772316436087,4.27424523,84.785,84.736,6.16]
[1772316436088,4.45032257,84.779,84.751,4.30003635]
[1772316436288,4.45032257,84.779,84.741,4.29715907]
[1772316436893,4.45032257,84.779,84.75,8.03754872]
[1772316437694,4.45032257,84.779,84.748,4.29715907]
[1772316439109,4.45032257,84.779,84.749,11.79954925]
[1772316439789,4.45032257,84.779,84.749,16.09670832]
[1772316441299,4.45032257,84.779,84.75,4.29715907]
[1772316441496,4.45032257,84.779,84.67,0.5]
[1772316441497,8.03754872,84.76,84.724,16.10019008]
[1772316441700,4.4612905,84.759,84.725,4.29715907]
[1772316441901,4.4612905,84.768,84.731,4.29715907]
[1772316445098,4.4612905,84.768,84.733,4.29715907]
[1772316445810,5.8165253,84.777,84.75,8.03754872]
[1772316445997,5.8165253,84.777,84.751,4.29715907]
[1772316446904,5.8165253,84.777,84.752,16.09629065]
[1772316447415,4.4612905,84.776,84.745,4.29715907]
[1772316447714,4.4612905,84.776,84.746,11.79996696]
[1772316447715,4.4612905,84.775,84.746,11.79996696]
[1772316449013,4.4612905,84.775,84.746,4.29715907]
[1772316449397,4.4612905,84.775,84.722,1.18033096]
[1772316449609,4.4612905,84.739,84.712,11.80470299]
[1772316450193,4.4612905,84.739,84.713,4.29715907]
[1772316450911,8.03754872,84.76,84.721,4.29715907]
[1772316451117,4.4612905,84.763,84.731,4.29715907]
[1772316451409,4.4612905,84.759,84.731,4.29715907]
[1772316453907,4.4612905,84.759,84.733,4.29715907]
[1772316455220,4.4612905,84.759,84.734,11.80163806]
[1772316456319,4.4612905,84.766,84.735,4.29715907]
[1772316458012,4.4612905,84.766,84.737,4.29715907]
[1772316458210,11.797322,84.765,84.737,4.29715907]
[1772316458515,4.4612905,84.759,84.724,11.80293833]
[1772316458713,4.4612905,84.759,84.724,16.1000974]
[1772316458913,4.4612905,84.759,84.725,4.29715907]
[1772316460018,4.4612905,84.759,84.727,4.29715907]
[1772316460415,29.48977628,84.776,84.712,4.29715907]
[1772316460416,2.99765457,84.75,84.712,4.29715907]
[1772316460613,4.4612905,84.749,84.712,4.29715907]
[1772316462418,4.4612905,84.749,84.714,4.29715907]
[1772316462617,11.79870676,84.756,84.721,4.29715907]
[1772316462805,4.4612905,84.757,84.721,4.29715907]
[1772316463212,4.4612905,84.755,84.721,4.29715907]
[1772316463412,2.99765457,84.75,84.721,4.29715907]
[1772316463609,4.4612905,84.749,84.721,4.29715907]
[1772316465225,4.21308552,84.748,84.703,4.22392412]
[1772316465406,4.21308552,84.739,84.711,4.22392412]
[1772316467123,4.21308552,84.739,84.703,0.5]
[1772316467321,4.27286743,84.719,84.691,4.34837634]
[1772316467809,4.27286743,84.729,84.692,4.34837634]
[1772316468727,4.27286743,84.729,84.694,4.34837634]
[1772316469223,11.80247379,84.728,84.694,4.34837634]
[1772316469525,16.07534122,84.728,84.694,4.34837634]
[1772316469914,11.80163806,84.734,84.694,4.34837634]
[1772316470114,4.27286743,84.733,84.694,4.34837634]
[1772316470826,4.27286743,84.742,84.711,4.34837634]
[1772316472722,4.27286743,84.742,84.704,4.34837634]
[1772316472917,4.27286743,84.749,84.706,4.34837634]
[1772316473224,4.27286743,84.749,84.711,4.34837634]
[1772316473819,4.27286743,84.739,84.705,45.66825119]
[1772316474122,4.27286743,84.739,84.706,4.34837634]
[1772316475831,4.27286743,84.739,84.707,11.80539978]
[1772316476030,4.27286743,84.739,84.708,4.34837634]
[1772316477317,4.27286743,84.739,84.711,4.34837634]
[1772316477634,4.27286743,84.754,84.711,4.34837634]
[1772316477828,4.27286743,84.753,84.711,4.34837634]
[1772316478216,4.27286743,84.751,84.713,4.34837634]
[1772316479030,4.27286743,84.749,84.713,4.34837634]
[1772316481818,4.27286743,84.749,84.714,11.80442429]
[1772316482029,4.27286743,84.749,84.715,4.34837634]
[1772316482212,11.79968495,84.749,84.715,4.34837634]
[1772316482415,4.27286743,84.748,84.715,4.34837634]
[1772316483114,4.27286743,84.747,84.715,4.34837634]
[1772316483331,4.27286743,84.729,84.69,1.18077695]
[1772316483515,4.27286743,84.699,84.661,11.81181417]
[1772316483712,2.99765457,84.68,84.653,11.81293043]
[1772316483912,2.99765457,84.67,84.646,29.53463847]
[1772316484220,29.51845309,84.693,84.647,4.34837634]
[1772316484221,2.99765457,84.68,84.647,4.34837634]
[1772316485825,4.27286743,84.678,84.647,4.34837634]
[1772316486026,4.27286743,84.678,84.648,16.16200454]
[1772316486227,4.27286743,84.678,84.649,4.34837634]
[1772316486626,2.99765457,84.68,84.648,11.8136282]
[1772316486627,4.27286743,84.686,84.651,4.34837634]
[1772316487712,4.27286743,84.686,84.653,4.34837634]
[1772316487928,4.27286743,84.698,84.661,4.34837634]
[1772316488236,11.8058179,84.704,84.671,4.34837634]
[1772316488634,4.27286743,84.703,84.671,4.34837634]
[1772316488941,2.99765457,84.7,84.671,4.34837634]
[1772316489235,4.27286743,84.703,84.671,4.34837634]
[1772316489644,3.69383402,84.745,84.654,1.18127908]
[1772316489645,4.27286743,84.725,84.691,4.34837634]
[1772316489838,4.27286743,84.733,84.701,4.34837634]
[1772316490530,4.27286743,84.741,84.711,3.7579502]
[1772316491327,4.27286743,84.74,84.711,3.7579502]
[1772316491834,4.27286743,84.74,84.712,11.80470299]
[1772316492042,4.27286743,84.739,84.712,11.80470299]
[1772316493646,4.27286743,84.739,84.713,4.34837634]
[1772316493833,4.27286743,84.739,84.714,11.80442429]
[1772316494925,4.27286743,84.737,84.709,11.80505222]
[1772316495443,4.27286743,84.729,84.698,4.34837634]
[1772316495645,4.27286743,84.729,84.701,4.34837634]
[1772316495939,4.27286743,84.736,84.704,4.34837634]
[1772316497531,4.27286743,84.736,84.705,16.17960271]
[1772316497931,4.27286743,84.736,84.706,4.37392418]
[1772316499140,4.07798347,84.719,84.68,1.18091639]
[1772316499340,41.30524576,84.735,84.671,4.37392418]
[1772316499341,4.07798347,84.709,84.671,4.37392418]
[1772316499533,4.07798347,84.699,84.671,4.37392418]
[1772316500239,4.07798347,84.699,84.664,4.37392418]
[1772316501230,4.07798347,84.699,84.666,4.37392418]
[1772316502827,4.07798347,84.699,84.668,4.37392418]
[1772316503535,15.8846377,84.698,84.668,4.37392418]
[1772316503729,4.07798347,84.697,84.668,4.37392418]
[1772316503946,4.07798347,84.689,84.659,11.81209322]
[1772316506151,4.07798347,84.688,84.659,11.81209322]
[1772316506637,4.07798347,84.679,84.65,4.37392418]
[1772316508354,15.88728832,84.679,84.651,11.81320953]
[1772316508749,15.88728832,84.679,84.652,4.37392418]
[1772316508954,4.07798347,84.686,84.652,4.37392418]
[1772316510862,8.03265753,84.69,84.654,4.37392418]
[1772316511039,23.91846162,84.69,84.654,4.37392418]
[1772316511846,4.07798347,84.689,84.654,4.37392418]
[1772316512041,4.07798347,84.687,84.656,4.37392418]
[1772316512846,15.88543107,84.693,84.656,4.37392418]
[1772316513061,4.07798347,84.692,84.656,4.37392418]
[1772316514167,4.07798347,84.69,84.658,4.37392418]
[1772316515243,4.07798347,84.69,84.657,11.81237227]
[1772316515244,7.08030154,84.69,84.657,11.81237227]
[1772316515562,4.07798347,84.689,84.652,11.8130357]
[1772316516070,4.07798347,84.689,84.653,4.37392418]
[1772316517074,4.07798347,84.687,84.653,4.37392418]
[1772316517463,4.07798347,84.669,84.633,16.18950787]
[1772316517761,4.07798347,84.659,84.627,11.81649005]
[1772316517949,4.07798347,84.659,84.62,0.1]
[1772316518157,4.07798347,84.659,84.63,12.01604441]
[1772316518668,4.07798347,84.659,84.63,0.2]
[1772316519270,4.07798347,84.657,84.63,0.2]
[1772316519965,4.07798347,84.657,84.631,11.81600122]
[1772316520951,4.07798347,84.679,84.641,4.37392418]
[1772316521177,4.07798347,84.679,84.643,4.37392418]
[1772316521178,4.07798347,84.678,84.643,4.37392418]
[1772316521671,3.00315011,84.67,84.643,4.37392418]
[1772316521851,4.07798347,84.659,84.634,4.37392418]
[1772316522161,3.00315011,84.65,84.634,4.37392418]
[1772316523162,4.07798347,84.649,84.63,0.2]
[1772316523371,7.08113358,84.64,84.63,0.00511604]
[1772316524555,4.03720363,84.639,84.62,0.05922016]
[1772316524774,29.53344953,84.65,84.6,0.2]
[1772316524775,3.99683159,84.629,84.6,0.2]
[1772316525071,3.99683159,84.629,84.6,4.37820015]
[1772316525453,3.99683159,84.629,84.602,4.17820015]
[1772316525646,3.99683159,84.629,84.603,15.99811197]
[1772316526059,3.99683159,84.629,84.604,4.17820015]
[1772316526592,3.99683159,84.636,84.604,4.17820015]
[1772316526765,3.00315011,84.64,84.604,4.17820015]
[1772316527866,11.81419473,84.644,84.611,4.32696859]
[1772316528074,3.00315011,84.64,84.611,4.32696859]
[1772316528375,3.99683159,84.629,84.603,4.32696859]
[1772316528571,3.99683159,84.629,84.6,0.2]
[1772316529073,3.99683159,84.629,84.6,4.52696859]
[1772316529251,3.99683159,84.629,84.602,4.32696859]
[1772316529450,0.79643012,84.643,84.59,8.25334862]
[1772316529451,3.99683159,84.636,84.591,4.32696859]
[1772316529672,12.05018021,84.62,84.592,4.32696859]
[1772316529874,3.99683159,84.636,84.594,4.32696859]
[1772316530073,11.81544278,84.635,84.6,8.05334862]
[1772316530384,8.05334862,84.63,84.601,4.32696859]
[1772316530558,11.81544278,84.635,84.59,8.25334862]
[1772316530559,3.99683159,84.619,84.591,4.32696859]
[1772316530958,3.99683159,84.619,84.591,16.14855717]
[1772316531965,3.99683159,84.619,84.592,4.32696859]
[1772316532751,8.05334862,84.63,84.592,4.32696859]
[1772316532965,0.75643012,84.632,84.601,4.32696859]
[1772316533170,3.99683159,84.631,84.601,4.32696859]
[1772316533973,0.75643012,84.632,84.603,4.32696859]
[1772316535180,3.99683159,84.631,84.603,4.32696859]
[1772316535371,0.75643012,84.632,84.603,4.32696859]
[1772316535875,0.75643012,84.632,84.604,11.81977211]
[1772316536073,0.75643012,84.632,84.605,4.32696859]
[1772316536683,8.05334862,84.63,84.598,11.82058496]
[1772316536864,3.99683159,84.629,84.598,11.82058496]
[1772316537063,11.81600122,84.631,84.599,4.32696859]
[1772316537257,0.75643012,84.632,84.601,4.32696859]
[1772316537468,0.75643012,84.632,84.611,4.32696859]
[1772316538372,0.75643012,84.632,84.613,4.32696859]
[1772316540371,4.75326171,84.632,84.606,11.81935339]
[1772316540790,4.75326171,84.632,84.607,4.32696859]
[1772316541370,3.99683159,84.631,84.607,4.32696859]
[1772316541574,0.75643012,84.632,84.607,4.32696859]
[1772316541772,0.75643012,84.632,84.61,8.05334862]
[1772316541981,0.75643012,84.632,84.611,4.32696859]
[1772316542889,3.99683159,84.654,84.614,4.32696859]
[1772316543073,3.99683159,84.654,84.621,4.32696859]
[1772316543693,11.81293043,84.653,84.621,4.32696859]
[1772316544889,0.60514409,84.677,84.631,4.32696859]
[1772316544890,3.99683159,84.668,84.631,4.32696859]
[1772316546678,3.99683159,84.649,84.613,4.32696859]
[1772316546981,3.99683159,84.649,84.61,8.05334862]
[1772316546982,11.81355282,84.649,84.615,4.32696859]
[1772316547377,3.99683159,84.648,84.615,4.32696859]
[1772316548488,3.99683159,84.639,84.608,4.32696859]
[1772316551003,3.99683159,84.639,84.601,41.37066937]
[1772316551004,3.99683159,84.639,84.61,4.32696859]
[1772316553083,11.81502398,84.638,84.612,4.32696859]
[1772316553307,3.99683159,84.637,84.612,4.32696859]
[1772316554803,3.99683159,84.635,84.608,11.81915491]
[1772316555689,3.99683159,84.629,84.598,4.32696859]
[1772316555897,3.99683159,84.629,84.599,11.82047069]
[1772316556203,3.99683159,84.629,84.6,4.32696859]
[1772316556784,3.99683159,84.647,84.61,3.00594534]
[1772316557099,3.99683159,84.646,84.611,4.41393764]
[1772316557794,3.99683159,84.653,84.62,3.00594534]
[1772316557993,11.81290993,84.654,84.621,4.41393764]